Cogmind - Beta 11.1 @@@ ROGUE MODE // 2022.11.03 @ 20:27:22 Player: Crud Result: Smashed by cave-in Performance ------------- Evolutions (0) 0 Regions Visited (3) 600 Robots Destroyed (17) 85 Value Destroyed (207) 207 Prototype IDs (0) 0 Alien Tech Used (0) 0 Bonus (0) 0 TOTAL SCORE: 892 Bonus ------- None Cogmind --------- Core Integrity 0/250 Matter 300/300 Energy 246/250 System Corruption 4% Temperature Warm (108) Movement Treading (320) Ox2 Location -10/Exiles Parts ------- > --- POWER (1) -------- Ion Engine > --- PROPULSION (2) --- Light Treads > --- UTILITY (2) ------ High-capacity Storage Unit Seismic Detector > --- WEAPON (2) ------- Assault Rifle Makeshift Spear > --- INVENTORY (20) --- Aluminum Leg Medium Storage Unit Large Battery (200) High-capacity Matter Pod (33) Improved Terrain Scanner Seismic Detector Light Armor Plating Particle Cannon Particle Cannon Rocket Launcher Rocket Launcher Peak State ------------ > --- POWER ------------ Light Nuclear Core > --- PROPULSION ------- Light Treads Light Treads > --- UTILITY ---------- High-capacity Storage Unit Seismic Detector > --- WEAPON ----------- Particle Cannon Makeshift Spear > --- INVENTORY -------- Ion Engine Aluminum Leg Medium Storage Unit Large Battery High-capacity Matter Pod Improved Terrain Scanner Seismic Detector Light Armor Plating Particle Cannon Assault Rifle Rocket Launcher Rocket Launcher [Rating: 14] Favorites ----------- Power Light Nuclear Core Engine Ion Engine Power Core Light Nuclear Core Propulsion Light Treads Treads Light Treads Leg Aluminum Leg Utility Seismic Detector Device Seismic Detector Storage High-capacity Storage Unit Weapon Assault Rifle Energy Gun Medium Laser Energy Cannon Particle Cannon Ballistic Gun Assault Rifle Launcher Rocket Launcher Piercing Weapon Makeshift Spear Build | -11 -10 -10 -10 ------- Run | Scr Mat Min Exi Slots Evolved . | . . . . Power . | . . . . Propulsion . | . . . . Utility . | . . . . Weapon . | . . . . Parts Attached 19 | 7 6 . 6 Power 3 | 1 1 . 1 Engine 2 | 1 . . 1 Core 1 | . 1 . . Reactor . | . . . . Propulsion 4 | 2 2 . . Treads 2 | . 2 . . Leg 2 | 2 . . . Wheel . | . . . . Hover . | . . . . Flight . | . . . . Utility 6 | 2 2 . 2 Device 3 | 1 1 . 1 Storage 3 | 1 1 . 1 Processor . | . . . . Hackware . | . . . . Protection . | . . . . Artifact . | . . . . Weapon 6 | 2 1 . 3 Energy Gun 1 | 1 . . . Energy Cannon 1 | . 1 . . Ballistic Gun 2 | 1 . . 1 Ballistic Cannon . | . . . . Launcher 1 | . . . 1 Special Weapon . | . . . . Impact Weapon . | . . . . Slashing Weapon . | . . . . Piercing Weapon 1 | . . . 1 Special Melee Weapon . | . . . . Unidentified Prototypes . | . . . . Parts Lost 2 | . . . 2 Power 1 | . . . 1 Propulsion 1 | . . . 1 Utility . | . . . . Weapon . | . . . . Highest Loss Streak 1 | . . . 1 To Critical Strikes . | . . . . Average Slot Usage (%) 97 | . 100 100 96 Engine 3 | . 5 . 2 Core 8 | . 8 14 7 Treads 26 | . 22 28 28 Leg 1 | . 5 . . Device 14 | . 14 14 14 Storage 14 | . 14 14 14 Energy Cannon 9 | . 13 14 7 Ballistic Gun 11 | . 14 14 10 Launcher 2 | . . . 3 Piercing Weapon 3 | . . . 6 Naked Turns . | . . . . Heaviest Build 52 | 15 22 22 52 Greatest Support 40 | 20 40 40 40 Greatest Overweight (x) 1 | . . . 1 Average Overweight (x) . | . . . . Largest Inventory Capacity 20 | 8 10 10 20 Average Capacity 14 | 7 8 10 18 Most Carried 12 | 8 10 10 12 Average Carried 9 | 6 8 10 11 Final Capacity 20 | 8 10 10 20 Final Carried 11 | 8 10 10 11 Class Distribution -------------------- 100% | Mutant Dominant Class ---------------- Mutant | -10/Materials Mutant | -10/Mines Mutant | -10/Exiles Resources | -11 -10 -10 -10 ----------- Run | Scr Mat Min Exi Matter Collected 738 | 385 104 . 249 Remotely . | . . . . Salvage Created 467 | 217 206 . 44 Parts 45 | 24 20 . 1 Haulers Intercepted . | . . . . Recyclers Shooed 1 | 1 . . . Parts Field Recycled . | . . . . Retrieved Matter . | . . . . Parts Self-Destructed . | . . . . Prevented . | . . . . Kills | -11 -10 -10 -10 ------- Run | Scr Mat Min Exi Combat Hostiles Destroyed 15 | . 8 . 7 Guns 4 | . 4 . . Cannons 4 | . 4 . . AOE 7 | . . . 7 Classes Destroyed 9 | 3 4 . 2 Worker 1 | 1 . . . Builder 1 | . 1 . . Tunneler 4 | 4 . . . Recycler 1 | 1 . . . Watcher 1 | . 1 . . Swarmer 6 | . 6 . . Grunt 2 | . 2 . . Zionite 1 | . . . 1 Assembled 7 | . . . 7 Best Kill Streak 8 | 3 7 . 8 Combat Bots Only 7 | . 3 . 7 Max Kills in Single Turn 3 | 1 2 . 3 Gunslinging . | . . . . Exploded 3 | . . . 3 Melee . | . . . . Uniques/NPCs Destroyed . | . . . . Combat | -11 -10 -10 -10 -------- Run | Scr Mat Min Exi Damage Taken 738 | . 242 . 496 Core 250 | . 52 . 198 Absorbed by Shields . | . . . . Core Remaining (%) 100 | 100 . . . Volleys Fired 48 | 10 23 . 15 Largest 2 | 2 2 . 2 Hottest 88 | 70 88 . 88 Shots Fired 86 | 20 46 . 20 Gun 48 | 20 23 . 5 Cannon 28 | . 23 . 5 Launcher 10 | . . . 10 Special . | . . . . Kinetic 38 | 10 23 . 5 Thermal 38 | 10 23 . 5 Explosive 10 | . . . 10 Electromagnetic . | . . . . Robot Hit Streak 5 | 3 5 . 2 Robot Miss Streak 6 | 4 6 . 2 Penetration Max . | . . . . Secondary Targets . | . . . . Shots Hit Robots 37 | 8 22 . 7 Core Hits 33 | 7 12 . 14 Critical Kills 1 | . . . 1 Critical Parts Destroyed . | . . . . Critical Strikes 1 | . . . 1 Destroy 1 | . . . 1 Melee Attacks 25 | . . . 25 Impact . | . . . . Slashing . | . . . . Piercing 25 | . . . 25 Sneak Attacks . | . . . . Combat Hostiles . | . . . . Follow-up Attacks . | . . . . Damage Inflicted 991 | 123 406 . 462 Guns 278 | 123 143 . 12 Cannons 284 | . 263 . 21 Explosions 429 | . . . 429 Melee . | . . . . Ramming . | . . . . Kinetic 239 | 84 143 . 12 Thermal 323 | 39 263 . 21 Explosive 429 | . . . 429 Electromagnetic . | . . . . Impact . | . . . . Slashing . | . . . . Piercing . | . . . . Highest Corruption 2 | . . . 2 Average Corruption 2 | . . . 2 Corruption Purged . | . . . . Corruption Blocked . | . . . . Effects 8 | . . . 8 Message Errors 1 | . . . 1 Matter Fused 2 | . . . 2 Heat Flow Errors 2 | . . . 2 Energy Discharges 2 | . . . 2 Data Loss (minor) 1 | . . . 1 Overload Shots . | . . . . Overflow Damage 7 | . . . 7 Projectiles . | . . . . Explosions 7 | . . . 7 Melee . | . . . . Knockbacks . | . . . . Impact . | . . . . Kinetic . | . . . . Secondary . | . . . . Self-Inflicted Damage 126 | . . . 126 Shots 4 | . . . 4 Rammed . | . . . . Targets Rammed . | . . . . Kicked . | . . . . Crushed . | . . . . Highest Temperature 231 | 27 231 . 188 Average Temperature 66 | 9 77 . 88 Received Heat Transfer 69 | . 69 . . Siege Activations . | . . . . Robots Corrupted . | . . . . Combat Hostiles . | . . . . Parts Fried . | . . . . Impact Corruptions . | . . . . Robots Melted . | . . . . Combat Hostiles . | . . . . Parts Melted . | . . . . Heat Transferred 629 | 111 481 . 37 Parts Sabotaged . | . . . . Parts Stolen . | . . . . Parts Stripped . | . . . . Power Chain Reactions . | . . . . Missiles Intercepted . | . . . . Alert | -11 -10 -10 -10 ------- Run | Scr Mat Min Exi Peak Influence 266 | 30 266 25 . Initial 25 | . 19 25 . Average 119 | 14 175 25 . Maximum Alert Level 1 | . 1 . . Low Security (%) 69 | 100 53 100 . Level 1 30 | . 46 . . Level 2 . | . . . . Level 3 . | . . . . Level 4 . | . . . . Level 5 . | . . . . High Security . | . . . . Max Security . | . . . . Squads Dispatched . | . . . . Investigation . | . . . . Extermination . | . . . . Reinforcement . | . . . . Assault . | . . . . Garrison . | . . . . Intercept . | . . . . Searches Triggered . | . . . . Construction Impeded . | . . . . Haulers Reinforced . | . . . . Active Scanning Responses . | . . . . Cargo Convoy Interrupts . | . . . . Stealth | -11 -10 -10 -10 --------- Run | Scr Mat Min Exi Distress Signals 1 | . 1 . . Communications Jammed . | . . . . Distress Signals . | . . . . Times Spotted 22 | . 11 . 11 Peak Tracking Total 13 | . 4 . 13 Tactical Retreats 2 | . . . 2 Traps | -11 -10 -10 -10 ------- Run | Scr Mat Min Exi Traps Triggered . | . . . . Indirectly . | . . . . Trap Hack Attempts . | . . . . Triggered . | . . . . Disarmed . | . . . . Reprogrammed . | . . . . Reused . | . . . . Traps Extracted . | . . . . Installed . | . . . . Triggered . | . . . . Machines | -11 -10 -10 -10 ---------- Run | Scr Mat Min Exi Machines Disabled 9 | . . . 9 Max in Single Turn 3 | . . . 3 Machines Sabotaged . | . . . . Garrisons Compromised . | . . . . Overloaded Fab Kills . | . . . . Hacking | -11 -10 -10 -10 --------- Run | Scr Mat Min Exi Machines Accessed 2 | . 2 . . Terminals 2 | . 2 . . Fabricators . | . . . . Repair Stations . | . . . . Recycling Units . | . . . . Scanalyzers . | . . . . Garrison Access . | . . . . Total Hacks 7 | . 7 . . Successful 3 | . 3 . . Failed 4 | . 4 . . Catastrophic . | . . . . Database Lockouts . | . . . . Manual 6 | . 6 . . Terminals 7 | . 7 . . Fabricators . | . . . . Repair Stations . | . . . . Recycling Units . | . . . . Scanalyzers . | . . . . Garrison Access . | . . . . Terminal Hacks 2 | . 2 . . Record 1 | . 1 . . Robot Analysis 1 | . 1 . . Fabricator Hacks . | . . . . Repair Station Hacks . | . . . . Recycling Unit Hacks . | . . . . Scanalyzer . | . . . . Garrison Access Hacks . | . . . . Unauthorized Hacks 1 | . 1 . . Terminals 1 | . 1 . . Botnet 1 | . 1 . . Fabricators . | . . . . Repair Stations . | . . . . Recycling Units . | . . . . Scanalyzers . | . . . . Garrison Access . | . . . . Data Cores Recovered . | . . . . Used . | . . . . Hacking Detections 2 | . 2 . . Full Trace Events 1 | . 1 . . Feedback Events . | . . . . Feedback Blocked . | . . . . Robot Schematics Acquired . | . . . . Robots Built . | . . . . Authchips . | . . . . Time . | . . . . Total Robot Build Rating . | . . . . Part Schematics Acquired . | . . . . Parts Built . | . . . . Authchips . | . . . . Time . | . . . . Total Part Build Rating . | . . . . Parts Repaired . | . . . . Time . | . . . . Parts Recycled . | . . . . Recycled Matter . | . . . . Retrieved Matter . | . . . . Retrieved Components . | . . . . Parts Scanalyzed . | . . . . Part Schematics Acquired . | . . . . Parts Damaged . | . . . . Bothacking | -11 -10 -10 -10 ------------ Run | Scr Mat Min Exi Used RIF Installer . | . . . . Robots Hacked . | . . . . Non-combat . | . . . . Combat . | . . . . Robot Hacks Applied . | . . . . Relay Couplers Released . | . . . . Fabnet Peak Effective % . | . . . . Robots Rewired . | . . . . Allies Hacked . | . . . . Hacks Repelled . | . . . . Allies | -11 -10 -10 -10 -------- Run | Scr Mat Min Exi Total Allies . | . . . . Largest Group . | . . . . Highest-Rated Group . | . . . . Highest-Rated Ally . | . . . . Total Orders . | . . . . Ally Attacks . | . . . . Total Damage . | . . . . Kills . | . . . . Allies Corrupted . | . . . . Allies Melted . | . . . . Intel | -11 -10 -10 -10 ------- Run | Scr Mat Min Exi Robot Analysis Total 1 | . 1 . . Derelict Logs Recovered . | . . . . Drone Launches . | . . . . Drone Recoveries . | . . . . Exploration | -11 -10 -10 -10 ------------- Run | Scr Mat Min Exi Turns Passed 1610 | 154 469 101 886 Spaces Moved 617 | 89 212 64 252 Core 3 | 3 . . . Treads 482 | . 166 64 252 Legs 132 | 86 46 . . Wheels . | . . . . Hover . | . . . . Flight . | . . . . Fastest Speed 50 | 50 120 160 160 Average Speed 171 | 117 151 160 210 Slowest Speed 240 | 120 160 160 240 Overloaded Moves . | . . . . Propulsion Burnouts . | . . . . Robots Hopped . | . . . . Cave-ins Triggered 2 | . . . 2 Exploration Rate (%) 32 | 3 40 25 63 Regions Visited 3 Branch Regions 2 Pre-discovered Areas . | . . . . Known Exits Taken . | . . . . Unknown Exits Taken 3 | 1 1 1 . Scrap Searched . | . . . . Spaces Dug 25 | . . . 25 Terrain Destroyed 60 | . . . 60 Melee 25 | . . . 25 Projectile . | . . . . AOE 35 | . . . 35 Terrain Rammed . | . . . . Walls Destroyed . | . . . . Machines Disabled . | . . . . Actions | -11 -10 -10 -10 --------- Run | Scr Mat Min Exi Total 1057 | 115 316 63 563 Wait 318 | . 58 . 260 Move 613 | 88 211 63 251 Hop . | . . . . Pick Up 22 | 9 9 . 4 Fast Attach 8 | 7 1 . . Attach 1 | . . . 1 Detach . | . . . . Swap 10 | . 5 . 5 Drop 12 | 1 9 . 2 Fire 48 | 10 23 . 15 Melee 25 | . . . 25 Ram . | . . . . Kick . | . . . . Crush . | . . . . Escape Stasis . | . . . . Rewire . | . . . . Trap . | . . . . Miscellaneous . | . . . . Route ------- -11/Scrapyard -10/Materials (discovered 2 exits: [*Min x2]) -10/Mines -10/Exiles History --------- Turn | Location | Event 33 | -11/Scrapyard | Discovered new exit (range 15) 155 | -11/Scrapyard | Entered Materials 318 | -10/Materials | Build established: Mutant 389 | -10/Materials | Discovered new exit (range 7) 551 | -10/Materials | Discovered new exit (range 8) 624 | -10/Materials | Entered Mines 634 | -10/Mines | Met a Derelict bent on vengeance 719 | -10/Mines | Deemed a non-threat by the Exiles lab entrance 719 | -10/Mines | Discovered new exit (range 5) 725 | -10/Mines | Entered Exiles 765 | -10/Exiles | Met 8R-AWN 797 | -10/Exiles | Met EX-HEX 921 | -10/Exiles | Met EX-DEC 1032 | -10/Exiles | Visited The Gauntlet 1184 | -10/Exiles | Attacked by the Exiles 1223 | -10/Exiles | Crushed by falling debris 1223 | -10/Exiles | Core integrity fell below 50% 1227 | -10/Exiles | Core integrity fell below 20% 1249 | -10/Exiles | Destroyed 7 combat bots 1611 | -10/Exiles | Crushed by falling debris 1611 | -10/Exiles | Smashed by cave-in Last Messages --------------- 01253_ The unstable cave ceiling collapses. 01317_ System corrupted: Heat flow error (+213). 01377_ System corrupted: Component data lost. 01394_ The unstable cave ceiling collapses. 01415_ System corrupted: Matter fused (-10). 01436_ The unstable cave ceiling collapses. 01457_ L4R7M<#WZOK61RXHFZ#KE2TXDSCRA 01489_ System corrupted: Matter fused (-9). 01528_ Dropped Hcp. Matter Pod. 01529_ Extracted 172 matter. 01529_ Acquired Hcp. Matter Pod. 01533_ System corrupted: Energy discharge (-87). 01566_ The unstable cave ceiling collapses. 01569_ System corrupted: Energy discharge (-60). 01599_ The unstable cave ceiling collapses. 01611_ System corrupted: Heat flow error (+106). 01611_ The unstable cave ceiling collapses. 01611_ Crushed by falling debris. 01611_ Lgt. Treads destroyed. 01611_ System corrupted by crushing effect (+2). Map ----- +----------------------------------------------------+ | ???????????????????????????## #????????????????? | | ????????????????????????????# #????????????????? | | ????????????????????????????# #????????????????? | | ????????????????????????????# #????????????????? | | ##??????????????????????????# #????????????????? | | ""??????""""""????"""""?????# #????????????????? | | "??????" " #??""""""????# #????????????????? | | ?????" ?" """"???# #????????????????? | | "?#""#" #"" """???# #????????????????? | | "?#""#" " ""???# #????????????????? | | "###""## # #"""###### ########?????????? | | """"" """""" """""""#?????????? | | "" "#""???????? | | " "?????? | | " "??????? | | " "??????? | | "" #"" ??????? | | "" " " " " """" """""#?????????? | | "### " ##""###"""########"""######?????????? | | "" ""#""#"" ""?????" ""?????????????? | | """# ""#""#""" ""#????" """#????????????? | | " "# ##" """""""#" " "#????""""""#????????????? | | """####"""""""#""?"""""""#????? """??????????????? | | """####"""""""#???"""""""#?????"""???????????????? | | ??###"####"####?????#######??????????????????????? | | ??#""" """"""""??????####@#??????????????????????? | | ??#""" """""""??????## ##??????????????????????? | | ??#""" """################???????????????????????? | | ??######## # ##??????????????????????????? | | | | | | | | | | | | | | | | | | | | | | | | | | | | | | | | | | | | | | | | | | | +----------------------------------------------------+ Best States ------------- Heat Dissipation 25 Energy Generation 14 Energy Capacity 250 Matter Stores 300 Matter Capacity 300 Sight Range 16 Terrain Scan Range 16 Terrain Scan Density 10 Evasion (%) 55 Recoil Reduction 2 Item Schematics ----------------- None Robot Schematics ------------------ None Fabricated ------------ Nothing Alien Tech Used ----------------- None Achievements -------------- None Challenges ------------ None Game ------ Seed TitaniumDirtyKit Manual? 0 Play Time 00:18:05 Cumulative 22.5 hours Start 2022.11.03 @ 20:11:17 End 2022.11.03 @ 20:27:22 Sessions 1 Manual Loads 0 Difficulty Rogue Special Mode None Game No. 26 Rogue 26 Adventurer 0 Explorer 0 Win Type - Total 0 Types 0/0/0/0/0/0/0/0/0 Lore% 23 Gallery% 30 Achievement% 21 Wizard Run 0 Options --------- ASCII 0 Keyboard 0 Movement Mouse Keybinds 0 Fullscreen 1 Font 36/Smallcaps Map View 76x50 Tactical HUD 1 Map Filters NONE Filters NONE Steam 1 RUN: 2ca49649-c00a-4cde-9789-29259e23d236